[Event "Titled Tuesday Blitz May 4 2021"]
[White "Noboa Silva, Kevin"]
[Black "Svidler, Peter"]
[WhiteFideId "3618471"]
[BlackFideId "4102142"]
[WhiteElo "2161"]
[BlackElo "2754"]
[Result "0-1"]
[Round "03"]
[TimeControl "180+1"]
[Date "2021.05.04"]
[WhiteClock "0:00:03"]
[BlackClock "0:01:40"]

1. d4 {[%clk 0:02:27]}  Nf6 {[%clk 0:02:57]} 2. c4 {[%clk 0:02:28]}  g6 {[%clk 0:02:53]} 3. Nc3 {[%clk 0:02:28]}  d5 {[%clk 0:02:53]} 4. cxd5 {[%clk 0:02:28]}  Nxd5 {[%clk 0:02:53]} 5. Bd2 {[%clk 0:02:29]}  Bg7 {[%clk 0:02:52]} 6. e4 {[%clk 0:02:29]}  Nb6 {[%clk 0:02:52]} 7. Be3 {[%clk 0:02:27]}  O-O {[%clk 0:02:52]} 8. h3 {[%clk 0:02:28]}  f5 {[%clk 0:02:51]} 9. exf5 {[%clk 0:02:19]}  Bxf5 {[%clk 0:02:50]} 10. Qb3+ {[%clk 0:02:18]}  Kh8 {[%clk 0:02:48]} 11. Nf3 {[%clk 0:02:01]}  Nc6 {[%clk 0:02:41]} 12. Be2 {[%clk 0:02:01]}  Qd6 {[%clk 0:02:38]} 13. Rd1 {[%clk 0:01:52]}  Qb4 {[%clk 0:02:36]} 14. Qxb4 {[%clk 0:00:26]}  Nxb4 {[%clk 0:02:35]} 15. O-O {[%clk 0:00:27]}  Rad8 {[%clk 0:02:34]} 16. Rfe1 {[%clk 0:00:22]}  Nc2 {[%clk 0:02:31]} 17. Rf1 {[%clk 0:00:22]}  Nxe3 {[%clk 0:02:32]} 18. fxe3 {[%clk 0:00:23]}  c6 {[%clk 0:02:28]} 19. g4 {[%clk 0:00:19]}  Be6 {[%clk 0:02:27]} 20. Ng5 {[%clk 0:00:19]}  Bg8 {[%clk 0:02:26]} 21. Nge4 {[%clk 0:00:18]}  Rxf1+ {[%clk 0:02:16]} 22. Rxf1 {[%clk 0:00:18]}  e5 {[%clk 0:02:15]} 23. dxe5 {[%clk 0:00:15]}  Bxe5 {[%clk 0:02:15]} 24. Nc5 {[%clk 0:00:15]}  Rd2 {[%clk 0:02:14]} 25. N3e4 {[%clk 0:00:09]}  Rxe2 {[%clk 0:02:13]} 26. Nxb7 {[%clk 0:00:08]}  Bd5 {[%clk 0:02:11]} 27. Nbc5 {[%clk 0:00:05]}  Nc4 {[%clk 0:02:10]} 28. Rf8+ {[%clk 0:00:05]}  Kg7 {[%clk 0:02:10]} 29. Re8 {[%clk 0:00:05]}  Bh2+ {[%clk 0:02:09]} 30. Kf1 {[%clk 0:00:05]}  Rxb2 {[%clk 0:02:08]} 31. Ng5 {[%clk 0:00:04]}  Rd2 {[%clk 0:01:40]} 32. Re7+ {[%clk 0:00:03]}  Kf8 {[%clk 0:01:40]} 33. Rxh7 {[%clk 0:00:03]}  Bg2+ {[%clk 0:01:39]} 34. Ke1 {[%clk 0:00:03]}  Bg3# {[%clk 0:01:40]} 0-1


[Site "https://www.chess.com"]

[Event "Titled Tuesday Blitz May 4 2021"]
[White "Onyshchuk, Volodymyr"]
[Black "Yeremyan, Alen"]
[WhiteFideId "14114038"]
[BlackFideId "13308998"]
[WhiteElo "2605"]
[BlackElo "2158"]
[Result "1-0"]
[Round "03"]
[TimeControl "180+1"]
[Date "2021.05.04"]
[WhiteClock "0:00:04"]
[BlackClock "0:00:07"]

1. Nf3 {[%clk 0:02:56]}  Nf6 {[%clk 0:02:59]} 2. g3 {[%clk 0:02:56]}  g6 {[%clk 0:03:00]} 3. Bg2 {[%clk 0:02:57]}  Bg7 {[%clk 0:03:00]} 4. O-O {[%clk 0:02:54]}  O-O {[%clk 0:03:01]} 5. d3 {[%clk 0:02:53]}  d6 {[%clk 0:03:00]} 6. c4 {[%clk 0:02:53]}  e5 {[%clk 0:02:58]} 7. Nc3 {[%clk 0:02:53]}  h6 {[%clk 0:02:56]} 8. Rb1 {[%clk 0:02:51]}  Be6 {[%clk 0:02:50]} 9. b4 {[%clk 0:02:45]}  Qd7 {[%clk 0:02:50]} 10. b5 {[%clk 0:02:36]}  Bh3 {[%clk 0:02:41]} 11. e4 {[%clk 0:02:36]}  Bxg2 {[%clk 0:02:37]} 12. Kxg2 {[%clk 0:02:35]}  Qe7 {[%clk 0:02:37]} 13. a4 {[%clk 0:02:28]}  Nbd7 {[%clk 0:02:31]} 14. Ba3 {[%clk 0:02:27]}  b6 {[%clk 0:02:13]} 15. Re1 {[%clk 0:02:21]}  Ne8 {[%clk 0:02:04]} 16. Nd5 {[%clk 0:02:19]}  Qd8 {[%clk 0:02:04]} 17. d4 {[%clk 0:02:16]}  exd4 {[%clk 0:01:21]} 18. Nxd4 {[%clk 0:02:16]}  Ne5 {[%clk 0:01:22]} 19. Qc2 {[%clk 0:02:04]}  Nf6 {[%clk 0:01:14]} 20. f4 {[%clk 0:01:58]}  Nxd5 {[%clk 0:00:46]} 21. exd5 {[%clk 0:01:48]}  Ng4 {[%clk 0:00:36]} 22. Nc6 {[%clk 0:01:48]}  Qd7 {[%clk 0:00:36]} 23. h3 {[%clk 0:01:44]}  Nf6 {[%clk 0:00:34]} 24. Re7 {[%clk 0:01:41]}  Qc8 {[%clk 0:00:34]} 25. Rbe1 {[%clk 0:01:32]}  Kh7 {[%clk 0:00:35]} 26. a5 {[%clk 0:01:21]}  bxa5 {[%clk 0:00:31]} 27. f5 {[%clk 0:00:53]}  g5 {[%clk 0:00:25]} 28. g4 {[%clk 0:00:48]}  Qb7 {[%clk 0:00:14]} 29. Bb2 {[%clk 0:00:25]}  a6 {[%clk 0:00:13]} 30. b6 {[%clk 0:00:18]}  Qxb6 {[%clk 0:00:12]} 31. Bd4 {[%clk 0:00:18]}  Qb7 {[%clk 0:00:12]} 32. Qc3 {[%clk 0:00:12]}  Ne8 {[%clk 0:00:07]} 33. f6 {[%clk 0:00:11]}  Bh8 {[%clk 0:00:06]} 34. Qd3+ {[%clk 0:00:11]}  Kg8 {[%clk 0:00:07]} 35. Rb1 {[%clk 0:00:11]}  Qc8 {[%clk 0:00:07]} 36. Qf3 {[%clk 0:00:06]}  a4 {[%clk 0:00:06]} 37. h4 {[%clk 0:00:06]}  a3 {[%clk 0:00:06]} 38. hxg5 {[%clk 0:00:05]}  a2 {[%clk 0:00:07]} 39. Rh1 {[%clk 0:00:05]}  Qb7 {[%clk 0:00:06]} 40. gxh6 {[%clk 0:00:04]}  Qb1 {[%clk 0:00:06]} 41. h7+ {[%clk 0:00:04]}  Qxh7 {[%clk 0:00:07]} 42. Rxh7 {[%clk 0:00:04]} 1-0


[Site "https://www.chess.com"]

[Event "Titled Tuesday Blitz May 4 2021"]
[White "Ozen, Bahadir"]
[Black "Kollars, Dmitrij"]
[WhiteFideId "6337058"]
[BlackFideId "12909572"]
[WhiteElo "2503"]
[BlackElo "2576"]
[Result "0-1"]
[Round "03"]
[TimeControl "180+1"]
[Date "2021.05.04"]
[WhiteClock "0:00:21"]
[BlackClock "0:00:40"]

1. g3 {[%clk 0:03:00]}  d5 {[%clk 0:02:58]} 2. Nf3 {[%clk 0:03:00]}  Bg4 {[%clk 0:02:57]} 3. Bg2 {[%clk 0:03:00]}  c6 {[%clk 0:02:57]} 4. c4 {[%clk 0:02:56]}  e6 {[%clk 0:02:52]} 5. cxd5 {[%clk 0:02:52]}  exd5 {[%clk 0:02:49]} 6. O-O {[%clk 0:02:51]}  Nd7 {[%clk 0:02:46]} 7. d3 {[%clk 0:02:47]}  Ngf6 {[%clk 0:02:46]} 8. h3 {[%clk 0:02:45]}  Bh5 {[%clk 0:02:44]} 9. Nc3 {[%clk 0:02:44]}  Bc5 {[%clk 0:02:44]} 10. Qc2 {[%clk 0:02:38]}  O-O {[%clk 0:02:44]} 11. e3 {[%clk 0:02:37]}  Re8 {[%clk 0:02:40]} 12. Ne2 {[%clk 0:02:36]}  Bd6 {[%clk 0:02:31]} 13. Nf4 {[%clk 0:02:29]}  Bxf4 {[%clk 0:02:11]} 14. exf4 {[%clk 0:02:29]}  Bxf3 {[%clk 0:02:02]} 15. Bxf3 {[%clk 0:02:28]}  Nf8 {[%clk 0:02:01]} 16. Be3 {[%clk 0:02:18]}  a5 {[%clk 0:01:49]} 17. a3 {[%clk 0:02:13]}  a4 {[%clk 0:01:49]} 18. Rfe1 {[%clk 0:01:57]}  h5 {[%clk 0:01:48]} 19. h4 {[%clk 0:01:45]}  Qd7 {[%clk 0:01:42]} 20. Bd4 {[%clk 0:01:43]}  Ng4 {[%clk 0:01:38]} 21. b4 {[%clk 0:01:27]}  axb3 {[%clk 0:01:37]} 22. Qxb3 {[%clk 0:01:27]}  Ne6 {[%clk 0:01:38]} 23. Bb2 {[%clk 0:01:27]}  d4 {[%clk 0:01:15]} 24. a4 {[%clk 0:01:19]}  Nc5 {[%clk 0:01:07]} 25. Rxe8+ {[%clk 0:01:17]}  Rxe8 {[%clk 0:01:07]} 26. Qc4 {[%clk 0:01:16]}  Ne6 {[%clk 0:01:02]} 27. f5 {[%clk 0:01:06]}  Ne5 {[%clk 0:00:45]} 28. fxe6 {[%clk 0:01:06]}  Rxe6 {[%clk 0:00:46]} 29. Qc5 {[%clk 0:00:24]}  Nxf3+ {[%clk 0:00:46]} 30. Kg2 {[%clk 0:00:24]}  Ne1+ {[%clk 0:00:46]} 31. Kf1 {[%clk 0:00:21]}  Re8 {[%clk 0:00:40]} 0-1


[Site "https://www.chess.com"]

[Event "Titled Tuesday Blitz May 4 2021"]
[White "Paiva, Henrique M A Albergaria"]
[Black "Tutisani, Noe"]
[WhiteFideId "1920995"]
[BlackFideId "13602853"]
[WhiteElo "2055"]
[BlackElo "2227"]
[Result "1/2-1/2"]
[Round "03"]
[TimeControl "180+1"]
[Date "2021.05.04"]
[WhiteClock "0:00:55"]
[BlackClock "0:01:15"]

1. e4 {[%clk 0:02:52]}  c5 {[%clk 0:02:58]} 2. Nf3 {[%clk 0:02:50]}  d6 {[%clk 0:02:59]} 3. Nc3 {[%clk 0:02:50]}  g6 {[%clk 0:02:57]} 4. d4 {[%clk 0:02:51]}  cxd4 {[%clk 0:02:58]} 5. Nxd4 {[%clk 0:02:52]}  Nf6 {[%clk 0:02:58]} 6. Be3 {[%clk 0:02:52]}  Bg7 {[%clk 0:02:58]} 7. f3 {[%clk 0:02:53]}  O-O {[%clk 0:02:59]} 8. Bc4 {[%clk 0:02:53]}  Nc6 {[%clk 0:03:00]} 9. Bb3 {[%clk 0:02:54]}  Qa5 {[%clk 0:02:58]} 10. Qd2 {[%clk 0:02:45]}  Nxd4 {[%clk 0:02:56]} 11. Bxd4 {[%clk 0:02:45]}  Be6 {[%clk 0:02:56]} 12. O-O {[%clk 0:02:40]}  Rac8 {[%clk 0:02:54]} 13. Qf2 {[%clk 0:02:38]}  a6 {[%clk 0:02:35]} 14. Rad1 {[%clk 0:02:28]}  Nd7 {[%clk 0:02:34]} 15. Bxg7 {[%clk 0:02:04]}  Kxg7 {[%clk 0:02:34]} 16. Nd5 {[%clk 0:02:04]}  Bxd5 {[%clk 0:02:30]} 17. Rxd5 {[%clk 0:02:05]}  Qb6 {[%clk 0:02:30]} 18. Rfd1 {[%clk 0:02:02]}  Qxf2+ {[%clk 0:02:25]} 19. Kxf2 {[%clk 0:02:03]}  Rc5 {[%clk 0:02:26]} 20. c4 {[%clk 0:01:59]}  Rfc8 {[%clk 0:02:24]} 21. Rxc5 {[%clk 0:01:54]}  Nxc5 {[%clk 0:02:23]} 22. Bc2 {[%clk 0:01:54]}  a5 {[%clk 0:02:16]} 23. b3 {[%clk 0:01:51]}  f6 {[%clk 0:02:07]} 24. h4 {[%clk 0:01:50]}  Kf7 {[%clk 0:02:06]} 25. g4 {[%clk 0:01:50]}  h6 {[%clk 0:02:06]} 26. f4 {[%clk 0:01:49]}  g5 {[%clk 0:02:06]} 27. Kg3 {[%clk 0:01:41]}  Ne6 {[%clk 0:01:58]} 28. hxg5 {[%clk 0:01:34]}  hxg5 {[%clk 0:01:58]} 29. f5 {[%clk 0:01:33]}  Nc5 {[%clk 0:01:58]} 30. Rh1 {[%clk 0:01:33]}  Kg7 {[%clk 0:01:57]} 31. Kf3 {[%clk 0:01:32]}  Rh8 {[%clk 0:01:57]} 32. Rxh8 {[%clk 0:01:32]}  Kxh8 {[%clk 0:01:58]} 33. Ke3 {[%clk 0:01:32]}  Kg7 {[%clk 0:01:57]} 34. Kd4 {[%clk 0:01:32]}  Kf7 {[%clk 0:01:54]} 35. a3 {[%clk 0:01:33]}  Ke8 {[%clk 0:01:50]} 36. b4 {[%clk 0:01:33]}  axb4 {[%clk 0:01:50]} 37. axb4 {[%clk 0:01:34]}  Na6 {[%clk 0:01:50]} 38. Kc3 {[%clk 0:01:33]}  Kd8 {[%clk 0:01:49]} 39. Ba4 {[%clk 0:01:33]}  Kc7 {[%clk 0:01:46]} 40. Bb5 {[%clk 0:01:31]}  Nb8 {[%clk 0:01:45]} 41. Kd4 {[%clk 0:01:31]}  Nc6+ {[%clk 0:01:35]} 42. Bxc6 {[%clk 0:01:31]}  bxc6 {[%clk 0:01:36]} 43. c5 {[%clk 0:01:25]}  Kd7 {[%clk 0:01:34]} 44. Kc4 {[%clk 0:01:21]}  e6 {[%clk 0:01:24]} 45. cxd6 {[%clk 0:01:10]}  Kxd6 {[%clk 0:01:24]} 46. Kd4 {[%clk 0:01:10]}  exf5 {[%clk 0:01:17]} 47. exf5 {[%clk 0:01:09]}  Kd7 {[%clk 0:01:15]} 48. Kc4 {[%clk 0:00:57]}  Kd8 {[%clk 0:01:14]} 49. Kd4 {[%clk 0:00:55]}  Kd7 {[%clk 0:01:14]} 50. Kc4 {[%clk 0:00:55]}  Kd8 {[%clk 0:01:14]} 51. Kd4 {[%clk 0:00:55]}  Kd7 {[%clk 0:01:15]} 1/2-1/2


[Site "https://www.chess.com"]

[Event "Titled Tuesday Blitz May 4 2021"]
[White "PattyCastillo"]
[Black "Mickiewicz, Piotr"]
[BlackFideId "1114891"]
[WhiteElo "2009"]
[BlackElo "2263"]
[Result "0-1"]
[Round "03"]
[TimeControl "180+1"]
[Date "2021.05.04"]
[WhiteClock "0:00:21"]
[BlackClock "0:00:49"]

1. d4 {[%clk 0:03:00]}  Nf6 {[%clk 0:02:57]} 2. Nf3 {[%clk 0:02:47]}  e6 {[%clk 0:02:55]} 3. e3 {[%clk 0:02:47]}  c5 {[%clk 0:02:54]} 4. Bd3 {[%clk 0:02:46]}  Nc6 {[%clk 0:02:53]} 5. b3 {[%clk 0:02:45]}  d5 {[%clk 0:02:52]} 6. Bb2 {[%clk 0:02:45]}  Bd6 {[%clk 0:02:45]} 7. O-O {[%clk 0:02:43]}  Qe7 {[%clk 0:02:45]} 8. c4 {[%clk 0:02:40]}  cxd4 {[%clk 0:02:43]} 9. exd4 {[%clk 0:02:40]}  O-O {[%clk 0:02:37]} 10. Re1 {[%clk 0:02:38]}  b6 {[%clk 0:02:31]} 11. Nbd2 {[%clk 0:02:36]}  Bb7 {[%clk 0:02:29]} 12. Qe2 {[%clk 0:02:36]}  Rac8 {[%clk 0:02:18]} 13. a3 {[%clk 0:02:35]}  Rfd8 {[%clk 0:02:15]} 14. Ne5 {[%clk 0:02:32]}  dxc4 {[%clk 0:02:08]} 15. bxc4 {[%clk 0:02:31]}  Bxe5 {[%clk 0:02:07]} 16. dxe5 {[%clk 0:02:29]}  Nd7 {[%clk 0:02:04]} 17. Rad1 {[%clk 0:02:22]}  Ndxe5 {[%clk 0:01:54]} 18. Bxe5 {[%clk 0:02:15]}  Nxe5 {[%clk 0:01:55]} 19. Bxh7+ {[%clk 0:02:14]}  Kxh7 {[%clk 0:01:55]} 20. Qxe5 {[%clk 0:02:14]}  Rc5 {[%clk 0:01:46]} 21. Qe3 {[%clk 0:01:58]}  Qg5 {[%clk 0:01:41]} 22. Qh3+ {[%clk 0:01:44]}  Kg8 {[%clk 0:01:22]} 23. Nf3 {[%clk 0:01:28]}  Bxf3 {[%clk 0:01:21]} 24. Qxf3 {[%clk 0:01:27]}  Rxc4 {[%clk 0:01:18]} 25. Qb7 {[%clk 0:01:08]}  Rxd1 {[%clk 0:01:06]} 26. Rxd1 {[%clk 0:01:08]}  Qd2 {[%clk 0:01:06]} 27. Qa8+ {[%clk 0:00:52]}  Kh7 {[%clk 0:01:05]} 28. Qf3 {[%clk 0:00:48]}  Rc1 {[%clk 0:00:59]} 29. Qe4+ {[%clk 0:00:30]}  g6 {[%clk 0:00:56]} 30. Qh4+ {[%clk 0:00:21]}  Kg7 {[%clk 0:00:49]} 0-1


[Site "https://www.chess.com"]

[Event "Titled Tuesday Blitz May 4 2021"]
[White "Petrova, Irina"]
[Black "Dowgird, Filip"]
[WhiteFideId "14124122"]
[BlackFideId "1121235"]
[WhiteElo "2022"]
[BlackElo "2209"]
[Result "0-1"]
[Round "03"]
[TimeControl "180+1"]
[Date "2021.05.04"]
[WhiteClock "0:00:01"]
[BlackClock "0:00:12"]

1. e4 {[%clk 0:03:00]}  d6 {[%clk 0:03:00]} 2. d4 {[%clk 0:03:00]}  Nf6 {[%clk 0:03:00]} 3. Nc3 {[%clk 0:03:00]}  c6 {[%clk 0:03:01]} 4. Nf3 {[%clk 0:02:59]}  Bg4 {[%clk 0:03:01]} 5. h3 {[%clk 0:02:57]}  Bh5 {[%clk 0:03:01]} 6. Bd3 {[%clk 0:02:50]}  e6 {[%clk 0:02:57]} 7. g4 {[%clk 0:02:48]}  Bg6 {[%clk 0:02:57]} 8. Bg5 {[%clk 0:02:47]}  Qb6 {[%clk 0:02:51]} 9. Qd2 {[%clk 0:02:26]}  Nbd7 {[%clk 0:02:45]} 10. O-O-O {[%clk 0:02:24]}  d5 {[%clk 0:02:44]} 11. exd5 {[%clk 0:02:17]}  cxd5 {[%clk 0:02:42]} 12. Ne5 {[%clk 0:02:10]}  Bb4 {[%clk 0:02:31]} 13. Bxf6 {[%clk 0:01:57]}  Nxf6 {[%clk 0:02:23]} 14. Bb5+ {[%clk 0:01:54]}  Ke7 {[%clk 0:02:11]} 15. Nxg6+ {[%clk 0:01:30]}  hxg6 {[%clk 0:02:10]} 16. Bd3 {[%clk 0:01:06]}  Rac8 {[%clk 0:01:51]} 17. g5 {[%clk 0:01:05]}  Ne8 {[%clk 0:01:49]} 18. Rhe1 {[%clk 0:00:58]}  Bxc3 {[%clk 0:01:46]} 19. bxc3 {[%clk 0:00:59]}  Nd6 {[%clk 0:01:46]} 20. Qe2 {[%clk 0:00:29]}  Rxc3 {[%clk 0:01:00]} 21. Qe5 {[%clk 0:00:29]}  Kf8 {[%clk 0:01:00]} 22. Kd2 {[%clk 0:00:24]}  Rc6 {[%clk 0:00:58]} 23. Rb1 {[%clk 0:00:22]}  Qa5+ {[%clk 0:00:57]} 24. Ke2 {[%clk 0:00:23]}  Rxh3 {[%clk 0:00:42]} 25. Rb3 {[%clk 0:00:17]}  Qxa2 {[%clk 0:00:29]} 26. Rxb7 {[%clk 0:00:15]}  Nxb7 {[%clk 0:00:26]} 27. Qb8+ {[%clk 0:00:16]}  Ke7 {[%clk 0:00:22]} 28. Qxb7+ {[%clk 0:00:17]}  Kd6 {[%clk 0:00:22]} 29. Qb4+ {[%clk 0:00:15]}  Kc7 {[%clk 0:00:19]} 30. Qe7+ {[%clk 0:00:15]}  Kb8 {[%clk 0:00:18]} 31. Qb4+ {[%clk 0:00:13]}  Rb6 {[%clk 0:00:18]} 32. Qf8+ {[%clk 0:00:13]}  Kb7 {[%clk 0:00:19]} 33. Qxf7+ {[%clk 0:00:13]}  Kb8 {[%clk 0:00:19]} 34. Qf8+ {[%clk 0:00:12]}  Kb7 {[%clk 0:00:19]} 35. Qf7+ {[%clk 0:00:12]}  Ka8 {[%clk 0:00:19]} 36. Qf8+ {[%clk 0:00:12]}  Rb8 {[%clk 0:00:19]} 37. Qd6 {[%clk 0:00:08]}  Qa4 {[%clk 0:00:13]} 38. Kf1 {[%clk 0:00:06]}  Rh1+ {[%clk 0:00:13]} 39. Ke2 {[%clk 0:00:06]}  Rxe1+ {[%clk 0:00:13]} 40. Kxe1 {[%clk 0:00:07]}  Qa5+ {[%clk 0:00:13]} 41. Ke2 {[%clk 0:00:07]}  Qb6 {[%clk 0:00:13]} 42. Qe5 {[%clk 0:00:06]}  Rb7 {[%clk 0:00:13]} 43. Bxg6 {[%clk 0:00:04]}  a6 {[%clk 0:00:13]} 44. Bd3 {[%clk 0:00:04]}  Ka7 {[%clk 0:00:13]} 45. g6 {[%clk 0:00:04]}  Rc7 {[%clk 0:00:12]} 46. f4 {[%clk 0:00:04]}  Rc6 {[%clk 0:00:12]} 47. f5 {[%clk 0:00:02]}  exf5 {[%clk 0:00:12]} 48. Qxf5 {[%clk 0:00:03]}  Rf6 {[%clk 0:00:11]} 49. Qd7+ {[%clk 0:00:01]}  Qb7 {[%clk 0:00:12]} 0-1


[Site "https://www.chess.com"]

[Event "Titled Tuesday Blitz May 4 2021"]
[White "Poghosyan, Suren"]
[Black "Bashirli, Saadat"]
[WhiteFideId "13303201"]
[BlackFideId "13429990"]
[WhiteElo "2314"]
[BlackElo "1153"]
[Result "1-0"]
[Round "03"]
[TimeControl "180+1"]
[Date "2021.05.04"]
[WhiteClock "0:00:14"]
[BlackClock "0:00:05"]

1. e4 {[%clk 0:03:00]}  c5 {[%clk 0:02:56]} 2. Nf3 {[%clk 0:03:00]}  g6 {[%clk 0:02:35]} 3. c3 {[%clk 0:03:00]}  Nf6 {[%clk 0:02:32]} 4. e5 {[%clk 0:02:59]}  Nd5 {[%clk 0:02:31]} 5. d4 {[%clk 0:03:00]}  cxd4 {[%clk 0:02:30]} 6. cxd4 {[%clk 0:03:01]}  Bg7 {[%clk 0:02:30]} 7. Nc3 {[%clk 0:03:01]}  Nxc3 {[%clk 0:02:29]} 8. bxc3 {[%clk 0:03:02]}  O-O {[%clk 0:02:29]} 9. Bd3 {[%clk 0:03:00]}  d6 {[%clk 0:02:29]} 10. h3 {[%clk 0:02:57]}  dxe5 {[%clk 0:02:26]} 11. dxe5 {[%clk 0:02:57]}  Nc6 {[%clk 0:02:26]} 12. Bf4 {[%clk 0:02:57]}  Be6 {[%clk 0:02:25]} 13. O-O {[%clk 0:02:56]}  Qc7 {[%clk 0:02:23]} 14. Re1 {[%clk 0:02:54]}  Rfd8 {[%clk 0:02:21]} 15. Qe2 {[%clk 0:02:54]}  Na5 {[%clk 0:02:15]} 16. Rac1 {[%clk 0:02:46]}  Nc4 {[%clk 0:02:12]} 17. Rcd1 {[%clk 0:02:36]}  b5 {[%clk 0:02:03]} 18. Nd4 {[%clk 0:02:27]}  a6 {[%clk 0:01:55]} 19. a4 {[%clk 0:02:26]}  Rab8 {[%clk 0:01:48]} 20. Nxe6 {[%clk 0:02:12]}  fxe6 {[%clk 0:01:47]} 21. Bxc4 {[%clk 0:02:07]}  bxc4 {[%clk 0:01:45]} 22. Qg4 {[%clk 0:02:06]}  Qc6 {[%clk 0:01:37]} 23. a5 {[%clk 0:01:54]}  Rd5 {[%clk 0:01:25]} 24. Qg5 {[%clk 0:01:46]}  Rb7 {[%clk 0:01:05]} 25. Qh4 {[%clk 0:01:19]}  Rbd7 {[%clk 0:00:57]} 26. Rxd5 {[%clk 0:01:18]}  Qxd5 {[%clk 0:00:58]} 27. Qg4 {[%clk 0:00:58]}  Kf7 {[%clk 0:00:46]} 28. Bg3 {[%clk 0:00:53]}  Qd3 {[%clk 0:00:31]} 29. Re4 {[%clk 0:00:20]}  Qd1+ {[%clk 0:00:20]} 30. Kh2 {[%clk 0:00:17]}  Qxg4 {[%clk 0:00:18]} 31. Rxg4 {[%clk 0:00:18]}  Rd5 {[%clk 0:00:14]} 32. Rf4+ {[%clk 0:00:17]}  Kg8 {[%clk 0:00:09]} 33. Rxc4 {[%clk 0:00:17]}  Rxa5 {[%clk 0:00:04]} 34. Rc8+ {[%clk 0:00:17]}  Kf7 {[%clk 0:00:01]} 35. c4 {[%clk 0:00:17]}  Bxe5 {[%clk 0:00:01]} 36. f4 {[%clk 0:00:16]}  Bd4 {[%clk 0:00:01]} 37. c5 {[%clk 0:00:17]}  Bf6 {[%clk 0:00:01]} 38. c6 {[%clk 0:00:16]}  Rc5 {[%clk 0:00:02]} 39. c7 {[%clk 0:00:13]}  Rc4 {[%clk 0:00:02]} 40. f5 {[%clk 0:00:12]}  a5 {[%clk 0:00:03]} 41. Rd8 {[%clk 0:00:12]}  e5 {[%clk 0:00:03]} 42. fxg6+ {[%clk 0:00:12]}  hxg6 {[%clk 0:00:03]} 43. c8=Q {[%clk 0:00:13]}  Rxc8 {[%clk 0:00:02]} 44. Rxc8 {[%clk 0:00:13]}  a4 {[%clk 0:00:03]} 45. Ra8 {[%clk 0:00:14]}  a3 {[%clk 0:00:04]} 46. Rxa3 {[%clk 0:00:14]}  e4 {[%clk 0:00:05]} 47. Re3 {[%clk 0:00:14]} 1-0


[Site "https://www.chess.com"]

[Event "Titled Tuesday Blitz May 4 2021"]
[White "Porter, Ryan W"]
[Black "Diaz Perez, Michel Alejandro"]
[WhiteFideId "2011239"]
[BlackFideId "3517179"]
[WhiteElo "2386"]
[BlackElo "2337"]
[Result "0-1"]
[Round "03"]
[TimeControl "180+1"]
[Date "2021.05.04"]
[WhiteClock "0:00:08"]
[BlackClock "0:00:51"]

1. c4 {[%clk 0:03:00]}  Nf6 {[%clk 0:02:59]} 2. Nf3 {[%clk 0:02:59]}  e6 {[%clk 0:02:58]} 3. Nc3 {[%clk 0:02:58]}  d5 {[%clk 0:02:57]} 4. e3 {[%clk 0:02:58]}  Bd6 {[%clk 0:02:54]} 5. d4 {[%clk 0:02:54]}  b6 {[%clk 0:02:51]} 6. b3 {[%clk 0:02:49]}  O-O {[%clk 0:02:50]} 7. Bb2 {[%clk 0:02:48]}  Bb7 {[%clk 0:02:49]} 8. Be2 {[%clk 0:02:48]}  Nbd7 {[%clk 0:02:48]} 9. O-O {[%clk 0:02:47]}  a6 {[%clk 0:02:48]} 10. Qc2 {[%clk 0:02:41]}  Qe7 {[%clk 0:02:44]} 11. Rac1 {[%clk 0:02:39]}  Rad8 {[%clk 0:02:27]} 12. Rfd1 {[%clk 0:02:37]}  Rfe8 {[%clk 0:02:25]} 13. h3 {[%clk 0:02:12]}  h6 {[%clk 0:02:23]} 14. Qd2 {[%clk 0:01:48]}  dxc4 {[%clk 0:01:56]} 15. bxc4 {[%clk 0:01:37]}  e5 {[%clk 0:01:56]} 16. Qc2 {[%clk 0:01:12]}  e4 {[%clk 0:01:44]} 17. Nh2 {[%clk 0:01:05]}  c5 {[%clk 0:01:39]} 18. Ng4 {[%clk 0:00:54]}  Nxg4 {[%clk 0:01:24]} 19. Bxg4 {[%clk 0:00:55]}  Nf6 {[%clk 0:01:24]} 20. Be2 {[%clk 0:00:55]}  cxd4 {[%clk 0:01:24]} 21. exd4 {[%clk 0:00:55]}  e3 {[%clk 0:01:24]} 22. Bf1 {[%clk 0:00:46]}  Bb8 {[%clk 0:01:20]} 23. fxe3 {[%clk 0:00:37]}  Qc7 {[%clk 0:01:02]} 24. d5 {[%clk 0:00:14]}  Qh2+ {[%clk 0:00:55]} 25. Kf2 {[%clk 0:00:14]}  Qg3+ {[%clk 0:00:55]} 26. Kg1 {[%clk 0:00:11]}  Rxe3 {[%clk 0:00:53]} 27. Qf2 {[%clk 0:00:08]}  Qh2# {[%clk 0:00:51]} 0-1


[Site "https://www.chess.com"]

[Event "Titled Tuesday Blitz May 4 2021"]
[White "Preotu, Razvan"]
[Black "Chen, Forest"]
[WhiteFideId "2613280"]
[BlackFideId "30908205"]
[WhiteElo "2407"]
[BlackElo "2508"]
[Result "1-0"]
[Round "03"]
[TimeControl "180+1"]
[Date "2021.05.04"]
[WhiteClock "0:00:04"]
[BlackClock "0:00:23"]

1. e4 {[%clk 0:03:00]}  c6 {[%clk 0:03:00]} 2. Nc3 {[%clk 0:03:00]}  d5 {[%clk 0:03:01]} 3. Nf3 {[%clk 0:03:01]}  Nf6 {[%clk 0:02:59]} 4. e5 {[%clk 0:03:00]}  Ne4 {[%clk 0:02:48]} 5. Ne2 {[%clk 0:02:59]}  Qb6 {[%clk 0:02:48]} 6. d4 {[%clk 0:02:59]}  Bg4 {[%clk 0:02:36]} 7. Nfg1 {[%clk 0:02:56]}  Bxe2 {[%clk 0:02:30]} 8. Nxe2 {[%clk 0:02:48]}  f6 {[%clk 0:02:23]} 9. f3 {[%clk 0:01:50]}  Ng5 {[%clk 0:02:21]} 10. h4 {[%clk 0:01:38]}  Nf7 {[%clk 0:02:14]} 11. f4 {[%clk 0:01:29]}  e6 {[%clk 0:02:07]} 12. g3 {[%clk 0:01:23]}  f5 {[%clk 0:02:05]} 13. h5 {[%clk 0:01:08]}  Bb4+ {[%clk 0:01:56]} 14. c3 {[%clk 0:01:07]}  Be7 {[%clk 0:01:56]} 15. Bg2 {[%clk 0:00:30]}  Nd7 {[%clk 0:01:53]} 16. Bf3 {[%clk 0:00:31]}  O-O-O {[%clk 0:01:50]} 17. b4 {[%clk 0:00:29]}  g5 {[%clk 0:01:49]} 18. a4 {[%clk 0:00:28]}  a5 {[%clk 0:01:41]} 19. b5 {[%clk 0:00:26]}  c5 {[%clk 0:01:38]} 20. dxc5 {[%clk 0:00:14]}  Bxc5 {[%clk 0:01:31]} 21. Nd4 {[%clk 0:00:13]}  gxf4 {[%clk 0:01:26]} 22. gxf4 {[%clk 0:00:14]}  Rhg8 {[%clk 0:01:24]} 23. Be3 {[%clk 0:00:15]}  Nfxe5 {[%clk 0:01:18]} 24. fxe5 {[%clk 0:00:15]}  Nxe5 {[%clk 0:01:19]} 25. Be2 {[%clk 0:00:15]}  Rdf8 {[%clk 0:01:15]} 26. Qd2 {[%clk 0:00:12]}  Ng4 {[%clk 0:01:12]} 27. Bg1 {[%clk 0:00:08]}  e5 {[%clk 0:01:10]} 28. Nf3 {[%clk 0:00:09]}  Nf2 {[%clk 0:01:04]} 29. Bxf2 {[%clk 0:00:08]}  Bxf2+ {[%clk 0:01:04]} 30. Kd1 {[%clk 0:00:09]}  Be3 {[%clk 0:01:04]} 31. Qc2 {[%clk 0:00:05]}  e4 {[%clk 0:01:03]} 32. Nd4 {[%clk 0:00:05]}  f4 {[%clk 0:01:01]} 33. Bf1 {[%clk 0:00:04]}  Bxd4 {[%clk 0:01:01]} 34. cxd4+ {[%clk 0:00:04]}  Kb8 {[%clk 0:01:01]} 35. Qc5 {[%clk 0:00:05]}  Qf6 {[%clk 0:00:58]} 36. b6 {[%clk 0:00:03]}  e3 {[%clk 0:00:52]} 37. Bd3 {[%clk 0:00:02]}  Rg2 {[%clk 0:00:49]} 38. Qxa5 {[%clk 0:00:02]}  Rd2+ {[%clk 0:00:48]} 39. Ke1 {[%clk 0:00:02]}  Kc8 {[%clk 0:00:27]} 40. Rc1+ {[%clk 0:00:02]}  Kd7 {[%clk 0:00:26]} 41. Qxd5+ {[%clk 0:00:03]}  Ke8 {[%clk 0:00:23]} 42. Rc8+ {[%clk 0:00:03]}  Ke7 {[%clk 0:00:23]} 43. Rc7+ {[%clk 0:00:03]}  Ke8 {[%clk 0:00:23]} 44. Qd7# {[%clk 0:00:04]} 1-0


[Site "https://www.chess.com"]